bitfinex/quotes_SOLUSD_20241105
["timestamp","ask_amount","ask_price","bid_price","bid_amount"]
[1730813331127,0.3178026,163.59,163.58,9.21851669]
[1730813332044,0.3178026,163.59,163.57,9.21851669]
[1730813332432,4.5968026,163.59,163.55,10.6998]
[1730813332635,4.5968026,163.59,163.55,19.91831669]
[1730813332952,9.21851669,163.58,163.53,9.21851669]
[1730813333152,9.21851669,163.57,163.5,6.4785]
[1730813333343,9.21851669,163.57,163.51,9.21851669]
[1730813334128,4.2795,163.57,163.52,9.21851669]
[1730813334535,13.49801669,163.57,163.52,9.21851669]
[1730813335551,13.49801669,163.57,163.51,4.281]
[1730813335753,13.49801669,163.57,163.52,9.21851669]
[1730813336547,13.49801669,163.57,163.51,13.49951669]
[1730813337339,13.49801669,163.57,163.51,9.21851669]
[1730813337847,13.49801669,163.57,163.51,13.49951669]
[1730813339349,9.21851669,163.54,163.49,10.72338233]
[1730813339549,9.21851669,163.54,163.49,1.50486564]
[1730813339848,9.21851669,163.53,163.49,1.50486564]
[1730813340056,9.21851669,163.52,163.49,1.50486564]
[1730813340259,9.21851669,163.52,163.46,10.7054]
[1730813340434,9.21851669,163.52,163.46,19.92391669]
[1730813340760,9.21851669,163.52,163.47,9.21851669]
[1730813341638,4.281,163.51,163.47,9.21851669]
[1730813344250,9.21851669,163.5,163.44,15.8725]
[1730813344458,9.21851669,163.49,163.44,9.21851669]
[1730813345155,9.34400669,163.5,163.45,9.21851669]
[1730813346338,0.12549,163.5,163.45,9.21851669]
[1730813346538,4.40699,163.5,163.45,9.21851669]
[1730813347438,4.40699,163.5,163.46,9.21851669]
[1730813348560,4.2815,163.5,163.46,9.21851669]
[1730813348751,4.2805,163.53,163.48,9.21851669]
[1730813349142,13.49901669,163.53,163.48,9.21851669]
[1730813354356,9.21851669,163.52,163.47,9.21851669]
[1730813355260,13.49951669,163.52,163.47,9.21851669]
[1730813356147,9.21851669,163.53,163.47,9.21851669]
[1730813356349,9.21851669,163.53,163.48,9.21851669]
[1730813358160,4.2808,163.52,163.48,9.21851669]
[1730813363184,13.49931669,163.52,163.47,9.21851669]
[1730813365188,13.49931669,163.52,163.46,9.21851669]
[1730813365478,9.21851669,163.51,163.45,9.21851669]
[1730813365695,4.2808,163.52,163.45,9.21851669]
[1730813365696,9.21851669,163.5,163.45,9.21851669]
[1730813366056,9.21851669,163.51,163.45,9.21851669]
[1730813366357,9.21851669,163.51,163.46,9.21851669]
[1730813366573,4.2813,163.5,163.46,9.21851669]
[1730813369052,4.2813,163.5,163.45,9.21851669]
[1730813369258,4.2813,163.5,163.46,9.21851669]
[1730813372770,4.2813,163.5,163.44,20.0]
[1730813372771,13.49981669,163.5,163.44,20.0]
[1730813372965,13.49981669,163.5,163.45,9.21851669]
[1730813373273,13.49981669,163.5,163.44,9.21851669]
[1730813373478,9.21851669,163.49,163.43,14.991]
[1730813373660,9.21851669,163.49,163.43,24.20951669]
[1730813373859,9.21851669,163.47,163.4,21.92027012]
[1730813374096,9.21851669,163.47,163.41,14.9929]
[1730813374388,9.21851669,163.47,163.42,9.21851669]
[1730813374591,9.21851669,163.44,163.38,19.51305069]
[1730813374795,9.21851669,163.43,163.38,16.47580031]
[1730813374966,9.21851669,163.42,163.38,1.48040031]
[1730813375280,9.21851669,163.42,163.37,9.21851669]
[1730813375483,4.2837,163.41,163.37,9.21851669]
[1730813375866,4.2837,163.41,163.37,13.50321669]
[1730813376986,4.2837,163.41,163.36,25.45961669]
[1730813377284,13.50221669,163.41,163.35,24.21671669]
[1730813377668,4.2837,163.41,163.37,9.21851669]
[1730813378368,13.50221669,163.41,163.35,24.21671669]
[1730813378680,9.21851669,163.39,163.34,9.21851669]
[1730813379791,13.50281669,163.39,163.34,9.21851669]
[1730813380175,13.50281669,163.39,163.34,13.50401669]
[1730813380870,4.2843,163.39,163.34,13.50401669]
[1730813381495,4.2843,163.39,163.35,9.21851669]
[1730813382271,4.2843,163.39,163.34,9.21851669]
[1730813382678,13.50281669,163.39,163.33,24.21881669]
[1730813384270,0.12549,163.4,163.33,24.21881669]
[1730813384271,9.21851669,163.38,163.33,24.21881669]
[1730813384486,13.50301669,163.38,163.33,24.21881669]
[1730813386197,13.50271669,163.39,163.33,24.21881669]
[1730813386770,13.50271669,163.39,163.34,9.21851669]
[1730813387072,13.50271669,163.39,163.33,24.21881669]
[1730813388105,9.21851669,163.38,163.33,19.93301669]
[1730813389186,9.21851669,163.38,163.33,10.7145]
[1730813389393,4.2842,163.39,163.32,13.50431669]
[1730813389394,9.21851669,163.37,163.32,13.50431669]
[1730813390169,13.50341669,163.37,163.32,13.50431669]
[1730813390797,4.2849,163.37,163.32,13.50431669]
[1730813391095,9.21851669,163.37,163.32,13.50431669]
[1730813391298,9.21851669,163.38,163.32,13.50431669]
[1730813392193,4.2847,163.37,163.32,13.50431669]
[1730813393194,13.50321669,163.37,163.32,13.50431669]
[1730813393499,13.50321669,163.37,163.32,9.21851669]
[1730813394073,4.2847,163.37,163.32,13.50441669]
[1730813394271,4.2847,163.37,163.32,24.21951669]
[1730813395777,9.21851669,163.35,163.3,0.3178026]
[1730813395982,9.21851669,163.35,163.3,9.53631929]
[1730813396872,4.2855,163.34,163.3,9.53631929]
[1730813397072,4.2855,163.34,163.31,9.21851669]
[1730813397999,4.2847,163.37,163.32,9.21851669]
[1730813398306,4.2847,163.37,163.33,9.21851669]
[1730813399096,13.10021915,163.41,163.36,9.21851669]
[1730813399399,13.10021915,163.41,163.37,9.21851669]
[1730813399989,8.81651915,163.41,163.38,9.21851669]
[1730813400173,8.81651915,163.41,163.4,9.21851669]
[1730813400678,8.81651915,163.41,163.36,42.89986676]
[1730813400679,8.81651915,163.41,163.38,9.21851669]
[1730813401184,109.33545165,163.52,163.38,9.21851669]
[1730813401185,15.053,163.53,163.42,6.1416]
[1730813401390,4.2797,163.56,163.51,9.21851669]
[1730813401590,4.2797,163.56,163.43,20.0]
[1730813401906,9.21851669,163.55,163.49,9.21851669]
[1730813402096,9.34400669,163.54,163.48,9.21851669]
[1730813402286,9.21851669,163.53,163.48,9.21851669]
[1730813402598,4.2808,163.52,163.48,9.21851669]
[1730813402810,13.49821669,163.56,163.5,9.21851669]
[1730813402979,25.8605,163.57,163.52,9.21851669]
[1730813403182,19.3326,163.57,163.52,9.21851669]
[1730813403405,4.5970026,163.59,163.54,9.21851669]
[1730813403996,0.3178026,163.59,163.54,9.21851669]
[1730813404201,0.3178026,163.59,163.55,9.21851669]
[1730813404400,0.3178026,163.59,163.54,9.21851669]
[1730813404778,4.5968026,163.59,163.54,9.21851669]
[1730813405284,4.5968026,163.59,163.55,14.36922001]
[1730813405482,0.3178026,163.59,163.55,14.36922001]
[1730813405795,0.3178026,163.59,163.57,14.36922001]
[1730813406784,0.3178026,163.59,163.58,14.36922001]
[1730813408274,0.3178026,163.59,163.58,34.36922001]
[1730813408693,0.3178026,163.59,163.58,14.36922001]
[1730813409400,0.3178026,163.59,163.58,38.64842001]
[1730813409585,0.3178026,163.59,163.58,53.11764002]
[1730813409781,0.3178026,163.59,163.58,53.01764002]
[1730813409992,0.3178026,163.59,163.58,38.64842001]
[1730813414184,0.3178026,163.59,163.58,53.36862002]
[1730813414382,0.3178026,163.59,163.58,39.09940001]
[1730813415387,0.3178026,163.59,163.58,38.99940001]
[1730813422083,0.3178026,163.59,163.58,38.64842001]
[1730813422595,0.3178026,163.59,163.58,53.49411002]
[1730813422790,0.3178026,163.67,163.59,20.35098]
[1730813422996,0.3178026,163.67,163.66,14.36922001]
[1730813425615,18.96402261,163.67,163.62,14.36922001]
[1730813425917,4.5948026,163.67,163.62,14.36922001]
[1730813426091,4.5948026,163.67,163.63,14.36922001]
[1730813427414,4.5948026,163.67,163.63,9.18713749]
[1730813427792,4.5948026,163.67,163.6,10.6962]
[1730813427995,9.18713749,163.65,163.6,9.18713749]
[1730813428994,32.96402149,163.66,163.6,9.18713749]
[1730813429405,4.2774,163.65,163.6,9.18713749]
[1730813430002,13.46453749,163.65,163.6,9.18713749]
[1730813432017,4.2774,163.65,163.6,9.18713749]
[1730813432491,13.46453749,163.65,163.6,9.18713749]
[1730813433498,13.46453749,163.65,163.59,9.18713749]
[1730813433499,9.18713749,163.64,163.59,9.18713749]
[1730813433914,13.46453749,163.65,163.59,9.18713749]
[1730813434913,13.46453749,163.65,163.59,13.46603749]
[1730813435117,9.18713749,163.64,163.58,9.18713749]
[1730813435316,9.18713749,163.63,163.57,39.88583749]
[1730813436017,13.46513749,163.63,163.57,44.16523749]
[1730813436809,9.18713749,163.62,163.57,44.16523749]
[1730813437101,13.46553749,163.62,163.57,44.16523749]
[1730813437523,13.46553749,163.62,163.57,19.88583749]
[1730813438009,13.46553749,163.62,163.57,24.16533749]
[1730813438211,0.37647,163.65,163.59,9.18713749]
[1730813438421,13.46453749,163.65,163.59,9.18713749]
[1730813439122,4.2774,163.65,163.61,9.18713749]
[1730813439501,20.2156,163.66,163.61,9.18713749]
[1730813439723,4.2771,163.66,163.62,9.18713749]
[1730813439893,0.3178026,163.67,163.62,9.18713749]
[1730813440095,0.3178026,163.67,163.59,6.2303]
[1730813440305,0.3178026,163.67,163.65,9.18713749]
[1730813441224,0.3178026,163.67,163.65,13.46443749]
[1730813442101,0.3178026,163.67,163.66,9.18713749]
[1730813442830,0.3178026,163.67,163.66,29.18713749]
[1730813443134,0.3178026,163.67,163.66,33.46423749]
[1730813445205,0.3178026,163.67,163.66,39.93521749]
[1730813445407,0.3178026,163.67,163.66,45.08890721]
[1730813447201,0.3178026,163.67,163.66,44.83792721]
[1730813447426,0.3178026,163.67,163.66,38.61792721]
[1730813448013,0.3178026,163.75,163.66,38.61792721]
[1730813448014,0.3178026,163.75,163.72,0.1]
[1730813448216,0.3178026,163.75,163.74,34.34082721]
[1730813449313,0.3178026,163.75,163.74,38.61582721]
[1730813453033,0.3178026,163.75,163.73,10.688]
[1730813453034,0.3178026,163.75,163.72,14.34082721]
[1730813453716,0.3178026,163.75,163.71,14.34082721]
[1730813454837,0.3178026,163.75,163.73,18.61592721]
[1730813455129,0.3178026,163.75,163.73,4.2751]
[1730813455730,0.3178026,163.75,163.72,4.2755]
[1730813456416,0.3178026,163.75,163.72,18.61632721]
[1730813458340,14.65862981,163.75,163.71,20.0]
[1730813458527,0.3178026,163.75,163.71,34.34082721]
[1730813458839,0.3178026,163.75,163.71,49.30622721]
[1730813460036,0.3178026,163.75,163.71,29.30622721]
[1730813460245,18.93342981,163.75,163.69,18.61692721]
[1730813460539,14.34082721,163.74,163.68,29.30882721]
[1730813460722,14.34082721,163.74,163.69,14.34082721]
[1730813460923,4.5926026,163.75,163.7,14.34082721]
[1730813460924,0.3178026,163.75,163.7,14.34082721]
[1730813461646,0.3178026,163.75,163.72,14.34082721]
[1730813462030,0.3178026,163.75,163.72,18.61622721]
[1730813463222,0.3178026,163.75,163.72,4.2754]
[1730813463633,0.3178026,163.75,163.72,18.61622721]
[1730813464437,0.3178026,163.75,163.72,4.2754]
[1730813465231,0.3178026,163.75,163.72,18.61622721]
[1730813465533,0.3178026,163.75,163.72,24.14121174]
[1730813465739,0.3178026,163.75,163.72,14.9643]
[1730813466545,0.3178026,163.75,163.73,9.17691174]
[1730813467933,0.3178026,163.75,163.73,13.45201174]
[1730813468635,0.3178026,163.75,163.73,24.14031174]
[1730813469428,0.3178026,163.75,163.74,9.17691174]
[1730813469736,0.3178026,163.75,163.74,13.45191174]
[1730813470841,0.3178026,163.75,163.73,9.17691174]
[1730813472928,0.3178026,163.75,163.72,13.45221174]
[1730813474125,0.3178026,163.75,163.72,24.14111174]
[1730813475149,0.3178026,163.75,163.73,9.17691174]
[1730813475854,0.3178026,163.75,163.74,9.17691174]
[1730813476153,0.3178026,163.75,163.73,13.45201174]
[1730813476950,0.3178026,163.75,163.73,24.14031174]
[1730813478540,0.3178026,163.75,163.73,14.9634]
[1730813478726,0.3178026,163.75,163.74,9.17691174]
[1730813478929,0.3178026,163.75,163.74,29.17691174]
[1730813479435,0.3178026,163.75,163.74,29.42789174]
[1730813480351,0.3178026,163.75,163.74,33.70289174]
[1730813480849,0.3178026,163.75,163.74,33.92838174]
[1730813481832,0.3178026,163.75,163.74,57.70526574]
[1730813482025,0.3178026,163.75,163.74,94.5129127]
[1730813482240,0.3178026,163.75,163.74,57.80526574]
[1730813482953,0.3178026,163.75,163.74,94.5129127]
[1730813483134,0.3178026,163.75,163.74,102.62558202]
[1730813483328,0.3178026,163.83,163.75,20.45098]
[1730813483541,0.3178026,163.83,163.8,9.17691174]
[1730813484046,0.3178026,163.83,163.81,9.17691174]
[1730813484633,0.3178026,163.83,163.82,9.17691174]
[1730813484838,0.3178026,163.83,163.81,9.17691174]
[1730813485656,0.3178026,163.83,163.8,19.86051174]
[1730813486541,9.49471434,163.83,163.8,10.6836]
[1730813486726,9.17691174,163.81,163.75,4.2748]
[1730813486932,4.5905026,163.83,163.77,9.17691174]
[1730813487144,13.76741434,163.83,163.77,9.17691174]
[1730813488040,4.5905026,163.83,163.78,9.17691174]
[1730813488349,0.3178026,163.83,163.78,9.17691174]
[1730813488744,0.3178026,163.83,163.79,9.17691174]
[1730813488961,9.49471434,163.83,163.78,9.17691174]
[1730813489134,13.76751434,163.83,163.77,24.13681174]
[1730813489459,9.17691174,163.82,163.77,24.13681174]
[1730813489838,9.17691174,163.8,163.75,29.17691174]
[1730813490354,9.17691174,163.79,163.74,10.6874]
[1730813490529,9.17691174,163.79,163.74,24.13921174]
[1730813491158,13.45051174,163.8,163.74,24.13921174]
[1730813491452,13.45051174,163.8,163.75,9.17691174]
[1730813491840,13.45051174,163.8,163.74,19.86431174]
[1730813492631,13.45051174,163.8,163.74,24.13931174]
[1730813492849,4.2736,163.8,163.74,9.17691174]
[1730813493057,9.17691174,163.78,163.73,20.0]
[1730813493249,9.17691174,163.78,163.73,29.17691174]
[1730813493858,9.17691174,163.79,163.73,29.17691174]
[1730813494234,13.45081174,163.79,163.73,33.45201174]
[1730813494757,9.17691174,163.78,163.73,33.45201174]
[1730813495339,13.45101174,163.78,163.73,33.45201174]
[1730813495651,9.17691174,163.75,163.69,10.6909]
[1730813495868,9.17691174,163.75,163.7,29.17691174]
[1730813496157,4.2741,163.78,163.71,9.17691174]
[1730813496158,9.17691174,163.76,163.71,9.17691174]
[1730813496934,13.45151174,163.76,163.71,4.2757]
[1730813498350,9.17691174,163.75,163.7,29.17691174]
[1730813498540,9.17691174,163.74,163.7,20.0]
[1730813498858,4.39949,163.78,163.69,10.6909]
[1730813498859,9.17691174,163.73,163.69,10.6909]
[1730813499530,9.17691174,163.72,163.66,24.14661174]
[1730813499737,9.17691174,163.71,163.66,24.14661174]
[1730813499938,6.2912,163.75,163.66,14.9697]
[1730813499939,9.17691174,163.7,163.66,14.9697]
[1730813500444,9.17691174,163.7,163.66,14.9698]
[1730813500639,13.45291174,163.71,163.66,24.14671174]
[1730813501064,29.07951174,163.73,163.67,9.17691174]
[1730813501362,4.2754,163.73,163.68,9.17691174]
[1730813501666,13.45231174,163.73,163.68,9.17691174]
[1730813502747,9.17691174,163.73,163.68,9.17691174]
[1730813502953,9.17691174,163.73,163.68,24.14471174]
[1730813503936,6.2912,163.75,163.69,9.17691174]
[1730813504156,4.2747,163.76,163.71,9.17691174]
[1730813505255,13.45161174,163.76,163.71,9.17691174]
[1730813505455,18.61504647,163.76,163.71,14.34034647]
[1730813505635,18.61504647,163.76,163.7,25.03034647]
[1730813506052,18.61504647,163.76,163.71,14.34034647]
[1730813506450,14.34034647,163.76,163.71,14.34034647]
[1730813506664,42.39153047,163.77,163.72,14.34034647]
[1730813506941,42.39153047,163.77,163.71,14.34034647]
[1730813507243,14.34034647,163.77,163.72,14.34034647]
[1730813507439,18.61414647,163.79,163.74,14.34034647]
[1730813507659,20.42364647,163.8,163.74,14.34034647]
[1730813509273,24.69714647,163.8,163.75,4.2748]
[1730813509468,18.61384647,163.8,163.75,18.61514647]
[1730813509673,14.34034647,163.8,163.75,18.61514647]
[1730813509973,18.61384647,163.8,163.75,14.9618]
[1730813510268,18.61384647,163.8,163.69,0.12549]
[1730813510269,14.34034647,163.78,163.73,14.34034647]
[1730813510565,14.34034647,163.78,163.72,25.02904647]
[1730813511068,14.34034647,163.79,163.74,14.34034647]
[1730813511363,18.61404647,163.79,163.73,14.34034647]
[1730813511546,14.34034647,163.78,163.73,14.34034647]
[1730813513247,18.61454647,163.78,163.73,14.34034647]
[1730813513456,18.61454647,163.78,163.73,18.61554647]
[1730813514656,14.34034647,163.79,163.73,18.61554647]
[1730813514847,14.34034647,163.79,163.74,14.34034647]
[1730813515170,14.34034647,163.79,163.73,18.61554647]
[1730813515353,14.34034647,163.78,163.73,18.61554647]
[1730813515543,38.11723047,163.79,163.73,18.61554647]
[1730813515746,14.34034647,163.78,163.73,18.61554647]
[1730813516670,18.61434647,163.79,163.73,18.61554647]
[1730813516962,42.39073047,163.8,163.75,14.34034647]
[1730813517154,18.61324647,163.82,163.76,14.34034647]
[1730813517358,14.34034647,163.81,163.75,14.34034647]
[1730813518172,14.34034647,163.8,163.74,29.30294647]
[1730813518553,14.34034647,163.8,163.75,14.34034647]
[1730813519255,14.34034647,163.8,163.75,4.2745]
[1730813519459,14.34034647,163.8,163.75,18.61484647]
[1730813519664,14.34034647,163.8,163.75,29.30184647]
[1730813519853,14.34034647,163.79,163.75,14.9615]
[1730813520461,18.61384647,163.8,163.75,14.9615]
[1730813520687,14.34034647,163.77,163.72,10.6887]
[1730813521244,18.61464647,163.77,163.72,14.9642]
[1730813521670,18.61434647,163.78,163.72,29.30454647]
[1730813522056,4.274,163.78,163.73,14.34034647]
[1730813522378,34.09214647,163.8,163.74,14.34034647]
[1730813522559,4.2735,163.8,163.75,14.34034647]
[1730813522882,14.34034647,163.81,163.75,14.34034647]
[1730813523168,14.34034647,163.77,163.72,29.30454647]
[1730813523748,18.61454647,163.78,163.72,29.30454647]
[1730813524262,18.61454647,163.78,163.73,18.61544647]
[1730813524567,4.2742,163.78,163.73,18.61544647]
[1730813524871,14.34034647,163.77,163.73,4.2751]
[1730813525372,14.34034647,163.78,163.73,4.2751]
[1730813525769,14.34034647,163.77,163.73,4.2751]
[1730813525944,14.34034647,163.74,163.7,4.276]
[1730813526450,14.34034647,163.73,163.69,14.967]
[1730813526652,14.34034647,163.71,163.69,10.6907]
[1730813527060,14.34034647,163.71,163.68,4.2765]
[1730813527474,9.18394977,163.71,163.66,24.15384977]
[1730813528279,9.18394977,163.71,163.66,14.9699]
[1730813528574,9.18394977,163.69,163.66,10.6928]
[1730813528759,14.9618,163.75,163.66,10.6928]
[1730813528760,9.18394977,163.68,163.66,10.6928]
[1730813528942,9.18394977,163.69,163.66,10.6928]
[1730813529144,9.18394977,163.67,163.63,4.2777]
[1730813529353,6.3722,163.7,163.62,6.38069578]
[1730813529354,9.18394977,163.64,163.62,6.38069578]
[1730813529549,9.18394977,163.64,163.59,14.9763]
[1730813529765,9.18394977,163.64,163.59,24.16024977]
[1730813529965,9.18394977,163.65,163.59,24.16024977]
[1730813530859,32.96083377,163.66,163.61,9.18394977]
[1730813531066,4.277,163.67,163.62,24.15764977]
[1730813531067,9.18394977,163.67,163.62,24.15764977]
[1730813531262,9.18394977,163.68,163.62,24.15764977]
[1730813531867,9.18394977,163.7,163.64,9.18394977]
[1730813532251,4.2758,163.71,163.65,9.18394977]
[1730813532560,32.96083377,163.72,163.66,9.18394977]
[1730813532753,9.18394977,163.72,163.66,9.18394977]
[1730813533276,13.45954977,163.72,163.66,13.46084977]
[1730813533577,9.18394977,163.71,163.66,13.46084977]
[1730813535668,13.45954977,163.72,163.67,9.18394977]
[1730813535878,23.776884,163.71,163.63,4.2779]
[1730813536174,9.18394977,163.67,163.62,24.15704977]
[1730813537274,9.18394977,163.68,163.63,9.18394977]
[1730813538195,9.18394977,163.66,163.62,10.6949]
[1730813538552,9.18394977,163.66,163.62,14.9731]
[1730813539465,9.18394977,163.63,163.59,10.6974]
[1730813539668,9.18394977,163.63,163.59,14.9763]
[1730813540377,9.18394977,163.61,163.57,4.2792]
[1730813540572,9.18394977,163.59,163.55,17.40058762]
[1730813540772,9.18394977,163.58,163.55,0.3178026]
[1730813541075,9.18394977,163.56,163.55,0.3178026]
[1730813541261,32.96083377,163.56,163.55,0.3178026]
[1730813541460,9.18394977,163.56,163.55,0.3178026]
[1730813541677,6.4741,163.58,163.55,0.3178026]
[1730813541678,23.776884,163.58,163.55,0.3178026]
[1730813542086,9.18394977,163.59,163.55,0.3178026]
[1730813542376,9.18394977,163.56,163.55,0.3178026]
[1730813542567,32.96083377,163.56,163.55,0.3178026]
[1730813543275,33.33730377,163.56,163.55,0.3178026]
[1730813543581,37.61700377,163.56,163.55,0.3178026]
[1730813543882,42.8148765,163.56,163.55,0.3178026]
[1730813545277,38.1587065,163.56,163.55,0.3178026]
[1730813548167,42.8148765,163.56,163.55,0.3178026]
[1730813551291,42.4384065,163.56,163.55,0.3178026]
[1730813551578,38.1587065,163.56,163.55,0.3178026]
[1730813551966,14.3818225,163.56,163.55,0.3178026]
[1730813553171,38.1587065,163.56,163.55,0.3178026]
[1730813554062,14.3818225,163.58,163.55,0.3178026]
[1730813554385,14.3818225,163.58,163.55,4.5978026]
[1730813555787,14.3818225,163.58,163.55,0.3178026]
[1730813555970,14.3818225,163.57,163.55,0.3178026]
[1730813557979,38.1587065,163.58,163.55,0.3178026]
[1730813558208,14.3818225,163.57,163.55,0.3178026]
[1730813559169,38.1587065,163.58,163.55,0.3178026]
[1730813560988,14.3818225,163.57,163.55,0.3178026]
[1730813561370,38.1587065,163.58,163.55,0.3178026]
[1730813562179,14.3818225,163.57,163.55,0.3178026]
[1730813562675,38.1587065,163.58,163.55,0.3178026]
[1730813562889,14.3818225,163.59,163.55,4.5977026]
[1730813563289,14.3818225,163.58,163.55,4.5977026]
[1730813564582,38.1587065,163.59,163.55,4.5977026]
[1730813565395,23.776884,163.59,163.55,15.2977026]
[1730813565987,38.1587065,163.59,163.55,15.2977026]
[1730813566497,14.3818225,163.6,163.55,15.2977026]
[1730813566883,14.3818225,163.63,163.58,14.3818225]
[1730813567093,14.3818225,163.62,163.56,14.3818225]
[1730813567303,14.3818225,163.61,163.56,14.3818225]
[1730813568286,18.6598225,163.63,163.57,29.3600225]
[1730813568676,14.3818225,163.62,163.57,29.3600225]
[1730813568876,14.3818225,163.62,163.57,14.9782]
[1730813569185,14.3818225,163.6,163.57,10.6987]
[1730813569503,14.3818225,163.59,163.55,0.3178026]
[1730813569794,14.3818225,163.56,163.55,0.3178026]
[1730813570503,6.73789,163.61,163.55,0.3178026]
[1730813570504,14.3818225,163.57,163.55,0.3178026]
[1730813571387,23.776884,163.56,163.55,0.3178026]
[1730813571600,38.1587065,163.56,163.55,0.3178026]
[1730813573282,42.4384065,163.56,163.55,0.3178026]
[1730813577102,14.3818225,163.56,163.55,0.3178026]
[1730813577401,32.97852422,163.56,163.55,0.3178026]
[1730813578223,9.20164022,163.57,163.55,0.3178026]
[1730813578509,23.776884,163.57,163.55,0.3178026]
[1730813578811,9.20164022,163.58,163.55,4.5978026]
[1730813578981,9.20164022,163.58,163.55,0.3178026]
[1730813579399,9.20164022,163.58,163.55,4.5977026]
[1730813580189,9.20164022,163.58,163.55,0.3178026]
[1730813580801,9.20164022,163.57,163.55,0.3178026]
[1730813581201,32.97852422,163.56,163.55,0.3178026]
[1730813582190,23.776884,163.56,163.55,0.3178026]
[1730813582989,32.97852422,163.56,163.55,0.3178026]
[1730813583191,23.776884,163.56,163.55,0.3178026]
[1730813583707,32.97852422,163.56,163.55,0.3178026]
[1730813583910,37.25822422,163.56,163.55,0.3178026]
[1730813585017,0.12549,163.54,163.46,15.3059026]
[1730813585204,9.20164022,163.49,163.46,15.3059026]
[1730813585394,14.38931747,163.49,163.46,15.3059026]
[1730813585708,14.38931747,163.5,163.46,15.3059026]
[1730813586013,14.38931747,163.47,163.46,0.3178026]
[1730813586195,14.38931747,163.49,163.46,0.3178026]
[1730813586592,14.38931747,163.51,163.46,0.3178026]
[1730813586794,23.776884,163.51,163.46,29.69532007]
[1730813588310,14.38931747,163.53,163.47,14.38931747]
[1730813588488,14.38931747,163.54,163.48,14.38931747]
[1730813589004,23.776884,163.54,163.49,14.38931747]
[1730813589521,14.38931747,163.56,163.5,18.67061747]
[1730813589708,14.38931747,163.54,163.5,14.9846]
[1730813590516,14.38931747,163.52,163.47,14.9873]
[1730813590743,14.38931747,163.49,163.46,15.7283026]
[1730813591012,14.38931747,163.5,163.46,15.7283026]
[1730813591197,14.38931747,163.49,163.46,15.7283026]
[1730813591528,14.38931747,163.5,163.46,20.0106026]
[1730813591695,14.38931747,163.5,163.46,15.7283026]
[1730813592025,14.38931747,163.49,163.46,0.3178026]
[1730813592218,14.38931747,163.48,163.46,0.3178026]
[1730813592719,14.38931747,163.49,163.46,0.3178026]
[1730813593616,14.38931747,163.5,163.46,4.6001026]
[1730813593912,14.38931747,163.52,163.46,18.98942007]
[1730813594107,23.776884,163.51,163.47,14.38931747]
[1730813594518,23.776884,163.52,163.47,14.38931747]
[1730813594717,14.38931747,163.51,163.46,15.3060026]
[1730813595427,42.44720147,163.52,163.46,29.69532007]
[1730813595825,14.38931747,163.51,163.46,15.3060026]
[1730813596909,42.44720147,163.52,163.46,29.69532007]
[1730813597905,14.38931747,163.53,163.47,14.38931747]
[1730813598128,14.38931747,163.55,163.49,14.38931747]
[1730813599128,14.38931747,163.53,163.48,14.38931747]
[1730813599333,18.66971747,163.54,163.48,18.67101747]
[1730813599708,14.38931747,163.54,163.49,14.38931747]
[1730813600112,14.38931747,163.54,163.48,29.37561747]
[1730813600417,14.38931747,163.53,163.48,29.37561747]
[1730813601226,14.38931747,163.49,163.46,0.3178026]
[1730813601417,14.38931747,163.48,163.46,0.3178026]
[1730813604226,4.2816,163.49,163.46,0.3178026]
[1730813604227,14.38931747,163.47,163.46,0.3178026]
[1730813608130,14.38931747,163.48,163.46,0.3178026]
[1730813610320,38.16620147,163.5,163.46,0.3178026]
[1730813610530,26.042,163.55,163.46,29.69532007]
[1730813610531,14.38931747,163.52,163.46,29.69532007]
[1730813610715,14.38931747,163.51,163.46,15.3060026]
[1730813611043,14.38931747,163.48,163.46,0.3178026]
[1730813611339,14.38931747,163.49,163.46,0.3178026]
[1730813613413,38.16620147,163.48,163.46,0.3178026]
[1730813613931,4.2816,163.49,163.46,0.3178026]
[1730813614408,23.776884,163.49,163.46,0.3178026]
[1730813615635,14.38931747,163.51,163.46,18.98942007]
[1730813615827,23.776884,163.51,163.46,18.98942007]
[1730813616021,38.16620147,163.51,163.46,18.98942007]
[1730813616620,14.38931747,163.5,163.46,0.3178026]
[1730813617444,14.38931747,163.48,163.46,0.3178026]
[1730813617824,14.38931747,163.47,163.46,0.3178026]
[1730813619438,38.16620147,163.47,163.46,0.3178026]
[1730813619649,42.44830147,163.47,163.46,0.3178026]
[1730813620919,23.776884,163.47,163.46,0.3178026]
[1730813622352,18.67121747,163.48,163.46,0.3178026]
[1730813626352,38.54267147,163.47,163.46,0.3178026]
[1730813626543,60.73177147,163.47,163.46,0.3178026]
[1730813627270,24.153354,163.46,163.37,26.3923]
[1730813627556,9.2185361,163.4,163.37,10.7115]
[1730813627729,9.2185361,163.41,163.37,14.9961]
[1730813628753,9.2185361,163.42,163.37,24.2146361]
[1730813629053,9.2185361,163.43,163.38,9.5363387]
[1730813629254,28.059384,163.46,163.4,9.2185361]
[1730813629439,28.059384,163.46,163.4,14.39479167]